bitfinex/quotes_BTCUSD_20240712
["timestamp","ask_amount","ask_price","bid_price","bid_amount"]
[1720756263685,0.14570058,57044.0,57043.0,0.022913]
[1720756264072,0.39112458,57044.0,57043.0,0.022913]
[1720756264315,0.14570058,57044.0,57043.0,0.02285259]
[1720756264951,0.02298858,57044.0,57043.0,0.02285259]
[1720756268471,0.02298858,57044.0,57043.0,0.08565259]
[1720756268933,0.10355972,57049.0,57043.0,0.08565259]
[1720756269133,0.122699,57050.0,57045.0,0.08511435]
[1720756269338,0.02047904,57048.0,57045.0,0.08511435]
[1720756269561,0.122699,57050.0,57045.0,0.08511435]
[1720756269562,0.1,57049.0,57045.0,0.08511435]
[1720756269764,0.02047904,57047.0,57045.0,0.08511435]
[1720756269938,0.222701,57049.0,57045.0,0.08511435]
[1720756270141,0.02047904,57046.0,57045.0,0.08511435]
[1720756270345,0.222701,57049.0,57045.0,0.45324435]
[1720756270346,0.1,57049.0,57045.0,0.45324435]
[1720756270551,0.12,57063.0,57046.0,0.00292074]
[1720756270552,0.0395,57059.0,57046.0,0.00292074]
[1720756270815,0.1595,57059.0,57046.0,0.00292074]
[1720756271044,0.001,57047.0,57046.0,0.00292074]
[1720756271270,0.001,57047.0,57046.0,0.122707]
[1720756271483,0.24537,57057.0,57046.0,0.122707]
[1720756271484,0.148721,57055.0,57046.0,0.122707]
[1720756271700,0.12269,57054.0,57050.0,0.08511435]
[1720756271936,0.1,57053.0,57050.0,0.08511435]
[1720756272584,0.002,57055.0,57050.0,0.08511435]
[1720756272585,0.02047904,57052.0,57051.0,0.430589]
[1720756272787,0.002,57055.0,57052.0,0.122694]
[1720756273033,0.002,57055.0,57051.0,0.0625]
[1720756273261,0.02612189,57059.0,57051.0,0.0625]
[1720756273262,0.003,57054.0,57051.0,0.0625]
[1720756273472,0.02612189,57059.0,57050.0,0.08511435]
[1720756273473,0.122,57053.0,57050.0,0.08511435]
[1720756273681,0.122,57053.0,57050.0,0.09311435]
[1720756273682,0.26517204,57053.0,57050.0,0.09311435]
[1720756274098,0.26517204,57053.0,57050.0,0.08511435]
[1720756274307,0.122695,57052.0,57051.0,0.014]
[1720756274726,0.02047904,57052.0,57051.0,0.014]
[1720756274928,0.001,57055.0,57051.0,0.006]
[1720756274929,0.122689,57055.0,57051.0,0.006]
[1720756275133,0.20518,57059.0,57054.0,0.08511435]
[1720756275336,0.122682,57058.0,57054.0,0.08511435]
[1720756275537,0.122688,57056.0,57051.0,0.006]
[1720756276114,0.122688,57055.0,57051.0,0.006]
[1720756276316,0.122688,57055.0,57050.0,0.08511435]
[1720756276521,0.122688,57055.0,57050.0,0.09211435]
[1720756276950,0.001,57053.0,57050.0,0.09511435]
[1720756277356,0.122683,57058.0,57052.0,0.062]
[1720756277801,0.001,57055.0,57052.0,0.062]
[1720756278139,0.122683,57058.0,57052.0,0.062]
[1720756278539,0.27076998,57060.0,57052.0,0.062]
[1720756278540,0.02541298,57060.0,57056.0,0.08511435]
[1720756278739,0.1,57061.0,57056.0,0.08511435]
[1720756278988,0.1784,57064.0,57056.0,0.20780035]
[1720756278989,0.12613109,57064.0,57056.0,0.20780035]
[1720756279200,0.12613109,57064.0,57056.0,0.08511435]
[1720756279400,0.122673,57062.0,57056.0,0.08511435]
[1720756279575,0.1,57061.0,57056.0,0.08511435]
[1720756280244,0.1,57061.0,57056.0,0.08611435]
[1720756280450,0.006,57064.0,57057.0,0.388868]
[1720756280667,0.0773,57073.0,57064.0,0.0611]
[1720756280668,0.02588706,57070.0,57064.0,0.0611]
[1720756280903,0.14854406,57070.0,57064.0,0.0611]
[1720756281108,0.12,57072.0,57057.0,0.1435]
[1720756281316,0.122672,57063.0,57057.0,0.1435]
[1720756281490,0.01329803,57062.0,57057.0,0.0611]
[1720756281645,0.01329803,57061.0,57057.0,0.0611]
[1720756281848,0.01329803,57060.0,57059.0,0.08511435]
[1720756282077,0.01329803,57060.0,57059.0,0.20779435]
[1720756282272,0.11380848,57067.0,57061.0,0.0824]
[1720756282474,0.01380874,57066.0,57062.0,0.061]
[1720756282719,0.03430293,57066.0,57065.0,0.20778135]
[1720756282920,0.03430293,57066.0,57065.0,0.45311535]
[1720756283131,0.01380874,57066.0,57065.0,0.45311535]
[1720756283316,0.01380874,57069.0,57065.0,0.45311535]
[1720756283452,0.013,57070.0,57066.0,0.122664]
[1720756283453,0.01380874,57068.0,57066.0,0.122664]
[1720756283663,0.01380874,57067.0,57066.0,0.122664]
[1720756284033,0.01380874,57069.0,57066.0,0.122664]
[1720756284808,0.01414152,57068.0,57066.0,0.122664]
[1720756285020,0.00083,57070.0,57067.0,0.245324]
[1720756285186,0.01414155,57069.0,57068.0,0.245321]
[1720756285816,0.01414155,57069.0,57068.0,0.367981]
[1720756286845,0.001,57069.0,57068.0,0.367981]
[1720756287004,0.01501909,57069.0,57068.0,0.367981]
[1720756287207,0.01401909,57069.0,57068.0,0.367981]
[1720756287631,0.01501909,57069.0,57068.0,0.378981]
[1720756287837,0.01501909,57069.0,57068.0,0.14166]
[1720756288047,0.001,57069.0,57068.0,0.20176]
[1720756290279,0.001,57069.0,57068.0,0.0791]
[1720756292776,0.001,57069.0,57068.0,0.019]
[1720756292980,0.01458738,57069.0,57068.0,0.019]
[1720756293186,0.03518138,57069.0,57068.0,0.019]
[1720756294604,0.07468138,57069.0,57068.0,0.019]
[1720756294847,0.31733938,57069.0,57068.0,0.019]
[1720756295057,0.41733938,57069.0,57068.0,0.019]
[1720756295262,0.29709687,57069.0,57068.0,0.019]
[1720756295665,0.41688964,57069.0,57068.0,0.019]
[1720756295867,1.0894275,57069.0,57068.0,0.019]
[1720756296105,0.98962364,57069.0,57068.0,0.008]
[1720756296268,1.23494064,57069.0,57068.0,0.012]
[1720756296478,1.28878878,57069.0,57068.0,0.012]
[1720756296679,1.28878878,57069.0,57068.0,0.004]
[1720756296908,0.12,57063.0,57053.0,0.065]
[1720756297232,0.03370803,57062.0,57053.0,0.065]
[1720756297430,0.01313764,57061.0,57053.0,0.065]
[1720756297840,0.01313764,57061.0,57050.0,0.08511435]
[1720756297841,0.365361,57059.0,57050.0,0.08511435]
[1720756298041,0.122684,57057.0,57050.0,0.08511435]
[1720756298263,0.365361,57059.0,57050.0,0.08511435]
[1720756298264,0.01348489,57056.0,57053.0,0.006]
[1720756298478,0.02056051,57056.0,57053.0,0.006]
[1720756298686,0.01175383,57055.0,57053.0,0.004]
[1720756298895,0.01175383,57054.0,57053.0,0.004]
[1720756299118,0.74520583,57054.0,57053.0,0.004]
[1720756299329,0.88236345,57054.0,57053.0,0.004]
[1720756299545,0.88236345,57054.0,57044.0,0.08511435]
[1720756299546,0.12,57052.0,57044.0,0.08511435]
[1720756299760,0.13445083,57051.0,57044.0,0.08511435]
[1720756299963,0.25715283,57050.0,57043.0,0.06305259]
[1720756300171,0.13445483,57049.0,57043.0,0.06305259]
[1720756300370,0.01175383,57048.0,57043.0,0.06305259]
[1720756300572,0.01175383,57047.0,57043.0,0.06305259]
[1720756300782,0.01175383,57046.0,57043.0,0.06305259]
[1720756300982,0.01175383,57045.0,57044.0,0.001]
[1720756301197,0.03228511,57045.0,57043.0,0.06305259]
[1720756301403,0.01175383,57044.0,57043.0,0.07005259]
[1720756301552,0.03228511,57044.0,57043.0,0.07505259]
[1720756301751,0.001,57049.0,57043.0,0.07005259]
[1720756301957,0.01124565,57048.0,57046.0,0.08511435]
[1720756302961,0.01124565,57047.0,57046.0,0.08511435]
[1720756303972,0.01124565,57047.0,57046.0,0.09311435]
[1720756304628,0.01124565,57047.0,57046.0,0.08511435]
[1720756304826,0.001,57047.0,57046.0,0.09411435]
[1720756304975,0.01224565,57047.0,57046.0,0.10111435]
[1720756305747,0.13523235,57047.0,57046.0,0.016]
[1720756306425,0.38064335,57047.0,57046.0,0.016]
[1720756306833,0.62605435,57047.0,57046.0,0.016]
[1720756307252,0.74605435,57047.0,57046.0,0.016]
[1720756307681,0.99146535,57047.0,57046.0,0.016]
[1720756307896,1.81843375,57047.0,57046.0,0.016]
[1720756308101,0.12,57042.0,57035.0,0.00083796]
[1720756308312,0.122729,57036.0,57035.0,0.00083796]
[1720756308519,0.713647,57036.0,57035.0,0.00083796]
[1720756308720,0.72488841,57036.0,57035.0,0.00083796]
[1720756309100,0.11124141,57036.0,57035.0,0.00083796]
[1720756309301,0.11124141,57036.0,57035.0,0.06733796]
[1720756309713,0.01124141,57036.0,57035.0,0.06733796]
[1720756310107,0.122729,57036.0,57035.0,0.06733796]
[1720756310310,0.47942941,57036.0,57035.0,0.06733796]
[1720756311488,0.47942941,57036.0,57035.0,0.07433796]
[1720756311489,0.48042941,57036.0,57035.0,0.07433796]
[1720756311607,0.48042941,57036.0,57035.0,0.07833796]
[1720756311807,0.01224141,57036.0,57035.0,0.15823796]
[1720756312034,0.001,57036.0,57035.0,0.28096896]
[1720756312238,0.001,57036.0,57035.0,0.28447515]
[1720756312428,0.001,57036.0,57035.0,0.52993815]
[1720756312639,0.001,57036.0,57035.0,0.28447515]
[1720756315179,0.001,57036.0,57035.0,0.52993815]
[1720756315584,0.001,57036.0,57035.0,0.64993815]
[1720756316275,0.001,57036.0,57035.0,1.14086415]
[1720756316900,0.001,57036.0,57035.0,0.89189496]
[1720756317107,0.001,57036.0,57035.0,0.15823796]
[1720756317318,0.122714,57043.0,57035.0,0.27396896]
[1720756317519,0.01178539,57042.0,57041.0,0.08511435]
[1720756317722,0.02041915,57042.0,57041.0,0.08511435]
[1720756317859,0.01178539,57042.0,57041.0,0.08511435]
[1720756318066,0.03220402,57042.0,57041.0,0.08511435]
[1720756318272,0.01178539,57042.0,57041.0,0.08511435]
[1720756318703,0.01178539,57042.0,57041.0,0.22641435]
[1720756318704,0.02041336,57042.0,57041.0,0.22641435]
[1720756319081,0.03219875,57042.0,57041.0,0.22841435]
[1720756319220,0.02041336,57042.0,57041.0,0.22841435]
[1720756319423,0.01212142,57042.0,57041.0,0.22841435]
[1720756319827,0.123537,57047.0,57041.0,0.22841435]
[1720756319828,0.122712,57044.0,57041.0,0.22841435]
[1720756320039,0.01212142,57043.0,57041.0,0.22841435]
[1720756320245,0.00083,57047.0,57041.0,0.22841435]
[1720756320437,0.01701263,57042.0,57041.0,0.22841435]
[1720756320660,0.01226492,57042.0,57041.0,0.35113235]
[1720756320863,0.02927935,57042.0,57041.0,0.59656935]
[1720756321208,0.00083,57047.0,57046.0,0.122707]
[1720756321459,0.01190957,57047.0,57046.0,0.68036326]
[1720756321659,0.01190957,57047.0,57046.0,0.06682626]
[1720756321775,0.01190957,57047.0,57046.0,0.183107]
[1720756322432,0.01190957,57047.0,57046.0,0.428522]
[1720756322658,0.01190957,57047.0,57046.0,0.751437]
[1720756323628,0.01290957,57047.0,57046.0,0.761437]
[1720756323843,0.01390957,57047.0,57046.0,0.770437]
[1720756324395,0.00283,57047.0,57046.0,1.135852]
[1720756325737,0.00183,57047.0,57046.0,1.126852]
[1720756326605,0.00083,57047.0,57046.0,1.116852]
[1720756327444,0.00083,57047.0,57046.0,1.130852]
[1720756327685,0.00083,57047.0,57046.0,1.144852]
[1720756327885,0.00083,57047.0,57046.0,1.813267]
[1720756328291,0.00083,57047.0,57046.0,1.913267]
[1720756328701,0.00083,57047.0,57046.0,2.144682]
[1720756328945,0.00083,57070.0,57066.0,0.14]
[1720756329122,0.00083,57070.0,57066.0,0.0646]
[1720756329123,0.01102992,57069.0,57066.0,0.0646]
[1720756329328,0.02792301,57069.0,57063.0,0.12267]
[1720756329529,0.01102992,57068.0,57063.0,0.18727]
[1720756329681,0.01102992,57068.0,57063.0,0.0646]
[1720756329904,0.09371193,57067.0,57058.0,0.43924718]
[1720756330255,0.122667,57065.0,57058.0,0.43924718]
[1720756330460,0.01102992,57064.0,57058.0,0.43924718]
[1720756330666,0.01102992,57063.0,57059.0,0.122679]
[1720756330871,0.01102992,57063.0,57060.0,0.122677]
[1720756331076,0.00083,57070.0,57060.0,0.122677]
[1720756331289,0.01409203,57062.0,57061.0,0.00292074]
[1720756331525,0.122665,57066.0,57063.0,0.002]
[1720756331731,0.24533,57066.0,57063.0,0.002]
[1720756331935,0.12,57069.0,57063.0,0.002]
[1720756331936,0.368007,57064.0,57063.0,0.002]
[1720756332549,0.122669,57064.0,57063.0,0.002]
[1720756332951,0.245338,57064.0,57060.0,0.006]
[1720756333167,0.245343,57063.0,57060.0,0.006]
[1720756333375,0.245347,57062.0,57060.0,0.006]
[1720756333596,0.368026,57061.0,57060.0,0.006]
[1720756333959,0.122675,57061.0,57060.0,0.006]
[1720756334186,0.245339,57064.0,57060.0,0.003]
[1720756334392,0.122672,57063.0,57060.0,0.003]
[1720756334594,0.122672,57063.0,57055.0,0.122687]
[1720756334963,0.122672,57063.0,57060.0,0.004]
[1720756335651,0.122673,57062.0,57060.0,0.004]
[1720756335854,0.122675,57061.0,57060.0,0.004]
[1720756336883,0.24535,57062.0,57054.0,0.00292074]
[1720756337108,0.12268,57059.0,57055.0,0.002]
[1720756337770,0.12268,57059.0,57053.0,0.0655]
[1720756338348,0.12268,57059.0,57055.0,0.002]
[1720756338715,0.12268,57059.0,57055.0,0.006]
[1720756338925,0.12268,57059.0,57055.0,0.004]
[1720756339145,0.122676,57061.0,57057.0,0.08511435]
[1720756339572,0.122675,57062.0,57057.0,0.08511435]
[1720756339918,0.122678,57060.0,57057.0,0.08511435]
[1720756340122,0.122676,57061.0,57057.0,0.08511435]
[1720756340350,0.122673,57062.0,57057.0,0.08511435]
[1720756340557,0.0235899,57065.0,57059.0,0.0808]
[1720756340763,0.122664,57067.0,57060.0,0.00292074]
[1720756340969,0.122665,57066.0,57060.0,0.00292074]
[1720756341224,0.0108285,57065.0,57064.0,0.08511435]
[1720756341446,0.0108285,57065.0,57064.0,0.35438335]
[1720756341645,0.0108285,57069.0,57064.0,0.35438335]
[1720756341853,0.0108285,57069.0,57065.0,0.00292074]
[1720756342019,0.01398914,57068.0,57065.0,0.00292074]
[1720756342218,0.0108285,57067.0,57065.0,0.00292074]
[1720756342495,0.12431741,57071.0,57065.0,0.00292074]
[1720756342691,0.01165762,57066.0,57065.0,0.00292074]
[1720756343112,0.122656,57070.0,57065.0,0.00292074]
[1720756343334,0.245313,57070.0,57065.0,0.00292074]
[1720756343537,0.122661,57068.0,57064.0,0.1516]
[1720756343740,0.01167142,57067.0,57064.0,0.1516]
[1720756343943,0.01167142,57067.0,57065.0,0.007]
[1720756344519,0.01167142,57067.0,57065.0,0.015]
[1720756344723,0.01167142,57067.0,57064.0,0.1466]
[1720756344935,0.01167142,57067.0,57064.0,0.0658]
[1720756345139,0.01167142,57067.0,57064.0,0.004]
[1720756345140,0.122667,57065.0,57064.0,0.004]
[1720756345346,0.368001,57065.0,57064.0,0.004]
[1720756345562,0.62501054,57065.0,57064.0,0.005]
[1720756345991,0.74501054,57065.0,57064.0,0.005]
[1720756347029,0.99034454,57065.0,57064.0,0.005]
[1720756347236,1.13746787,57065.0,57064.0,0.005]
[1720756347445,0.122688,57056.0,57053.0,0.0606]
[1720756347862,0.01166698,57055.0,57053.0,0.0606]
[1720756348687,0.01166698,57055.0,57053.0,0.0646]
[1720756348897,0.613452,57054.0,57053.0,0.004]
[1720756349308,0.67237094,57054.0,57053.0,0.004]
[1720756349514,0.67237094,57054.0,57053.0,0.009]
[1720756349731,1.03775194,57054.0,57053.0,0.009]
[1720756349937,1.26055194,57054.0,57053.0,0.009]
[1720756350762,1.50593294,57054.0,57053.0,0.005]
[1720756350987,1.50593294,57054.0,57044.0,0.37464718]
[1720756350988,0.73355,57045.0,57044.0,0.37464718]
[1720756351194,0.73355,57045.0,57035.0,0.57622407]
[1720756351195,0.368188,57036.0,57035.0,0.51152407]
[1720756351402,0.613647,57036.0,57035.0,0.00083796]
[1720756351815,0.62527407,57036.0,57035.0,0.00083796]
[1720756352026,0.37981507,57036.0,57035.0,0.00083796]
[1720756352452,0.39063828,57036.0,57035.0,0.00883796]
[1720756352867,0.63609728,57036.0,57035.0,0.00883796]
[1720756353076,0.14517928,57036.0,57035.0,0.00883796]
[1720756353291,0.02245028,57036.0,57035.0,0.00883796]
[1720756353498,0.02245028,57036.0,57035.0,0.07023796]
[1720756354123,0.14617928,57036.0,57035.0,0.01583796]
[1720756354537,0.39163828,57036.0,57035.0,0.00783796]
[1720756354759,0.39063828,57036.0,57035.0,0.00883796]
[1720756355180,0.39163946,57036.0,57035.0,0.00983796]
[1720756355393,0.39063946,57036.0,57035.0,0.00083796]
[1720756355603,0.39063946,57036.0,57035.0,0.00883796]
[1720756355604,0.37981507,57036.0,57035.0,0.00883796]
[1720756355810,0.63709844,57036.0,57035.0,0.01683796]
[1720756357263,0.63609844,57036.0,57035.0,0.00883796]
[1720756357472,0.63609844,57036.0,57035.0,0.00876369]
[1720756357674,0.63709812,57036.0,57035.0,0.00976369]
[1720756358057,1.10155712,57036.0,57035.0,0.00976369]
[1720756358257,1.10255712,57036.0,57035.0,0.01676369]
[1720756358459,1.10255594,57036.0,57035.0,0.00776369]
[1720756358818,1.10255594,57036.0,57035.0,0.01576369]
[1720756359052,1.14195594,57036.0,57035.0,0.00876369]
[1720756359275,1.28965032,57036.0,57035.0,0.00076369]
[1720756359479,1.23257608,57036.0,57035.0,0.00076369]
[1720756359681,1.24213872,57036.0,57035.0,0.00076369]
[1720756360547,1.49259772,57036.0,57035.0,0.00076369]
[1720756360750,1.48949492,57036.0,57035.0,0.00076369]
[1720756360956,1.73653878,57036.0,57035.0,0.00076369]
[1720756361167,1.73653878,57036.0,57025.0,0.08511435]
[1720756361168,1.424583,57035.0,57025.0,0.08511435]
[1720756361368,1.58434693,57035.0,57025.0,0.08511435]
[1720756361576,1.64615224,57035.0,57025.0,0.08511435]
[1720756361792,1.86125736,57035.0,57025.0,0.08511435]
[1720756362245,1.79945205,57035.0,57025.0,0.08511435]
[1720756362452,2.11851785,57035.0,57025.0,0.08511435]
[1720756362656,1.67305485,57035.0,57025.0,0.08511435]
[1720756363462,1.4204672,57035.0,57025.0,0.08511435]
[1720756363641,1.4324672,57035.0,57025.0,0.08511435]
[1720756365108,1.07700591,57035.0,57025.0,0.08511435]
[1720756365313,1.12150627,57035.0,57030.0,0.0653]
[1720756365527,1.11068264,57035.0,57030.0,0.0653]
[1720756365728,1.12150705,57035.0,57030.0,0.0653]
[1720756366487,0.41058105,57035.0,57031.0,0.08511435]
[1720756367103,0.65604405,57035.0,57031.0,0.08511435]
[1720756367507,0.64404405,57035.0,57031.0,0.08511435]
[1720756367706,0.40058105,57035.0,57031.0,0.08511435]
[1720756367909,0.37975664,57035.0,57031.0,0.08511435]
[1720756368085,0.13329364,57035.0,57031.0,0.08511435]
[1720756368466,0.01256264,57035.0,57032.0,0.00292074]
[1720756368667,0.13429364,57035.0,57032.0,0.00292074]
[1720756368914,0.62621964,57035.0,57031.0,0.08511435]
[1720756369476,0.72521964,57035.0,57031.0,0.08511435]
[1720756370118,0.47975664,57035.0,57031.0,0.08511435]
[1720756370741,0.47775664,57035.0,57031.0,0.08511435]
[1720756372159,0.48858399,57035.0,57031.0,0.08511435]
[1720756372360,0.47775664,57035.0,57031.0,0.08511435]
[1720756372563,0.48858477,57035.0,57031.0,0.08511435]
[1720756372962,0.48858443,57035.0,57031.0,0.08511435]
[1720756373176,0.47775664,57035.0,57031.0,0.08511435]
[1720756373371,0.48858474,57035.0,57031.0,0.08511435]
[1720756373976,0.60858474,57035.0,57031.0,0.08511435]
[1720756374177,0.60858474,57035.0,57030.0,0.0653]
[1720756374178,1.09951074,57035.0,57030.0,0.0653]
[1720756374350,1.11515574,57035.0,57028.0,0.0808]
[1720756375164,1.10432764,57035.0,57028.0,0.0808]
[1720756375371,1.1191552,57035.0,57028.0,0.0808]
[1720756375593,1.10832764,57035.0,57028.0,0.0808]
[1720756375805,1.11515512,57035.0,57028.0,0.0808]
[1720756376047,1.00015512,57035.0,57034.0,0.001913]
[1720756376463,0.50922912,57035.0,57034.0,0.001913]
[1720756376689,0.51622912,57035.0,57034.0,0.001913]
[1720756376866,0.50922912,57035.0,57034.0,0.001913]
[1720756377087,0.50922912,57035.0,57034.0,0.063413]
[1720756377316,0.51322912,57035.0,57034.0,0.063413]
[1720756377518,0.50922912,57035.0,57034.0,0.063413]
[1720756377675,0.24793864,57035.0,57034.0,0.138713]
[1720756377874,0.26176444,57035.0,57034.0,0.138713]
[1720756378498,0.12820764,57035.0,57034.0,0.138713]
[1720756378685,0.26176404,57035.0,57034.0,0.138713]
[1720756379148,0.25876404,57035.0,57034.0,0.138713]
[1720756379455,0.25876404,57035.0,57034.0,0.139713]
[1720756379863,0.15876404,57035.0,57034.0,0.139713]
[1720756380235,0.03603304,57035.0,57034.0,0.139713]
[1720756381185,0.39340164,57035.0,57034.0,0.139713]
[1720756381387,0.03603457,57035.0,57034.0,0.139713]
[1720756381520,0.03686457,57035.0,57034.0,0.262446]
[1720756381866,0.02730193,57035.0,57034.0,0.507913]
[1720756382140,0.016475,57035.0,57034.0,0.96200081]
[1720756382736,0.016475,57035.0,57034.0,1.20746781]
[1720756382936,0.016475,57035.0,57034.0,1.08746781]
[1720756383514,0.017475,57035.0,57034.0,1.08746781]
[1720756383723,0.017475,57035.0,57034.0,1.20746781]
[1720756384769,0.017475,57035.0,57034.0,1.20646781]
[1720756385163,0.017475,57035.0,57034.0,1.08846781]
[1720756385362,0.017475,57035.0,57034.0,1.20846781]
[1720756385785,0.017475,57035.0,57034.0,1.20646781]
[1720756385958,0.018475,57035.0,57034.0,1.21646781]
[1720756386166,0.018475,57035.0,57034.0,1.09646781]
[1720756386371,0.018475,57035.0,57034.0,0.84749435]
[1720756386898,0.018475,57035.0,57034.0,0.96749435]
[1720756387105,0.018475,57035.0,57034.0,0.84749435]
[1720756387483,0.018475,57035.0,57034.0,0.96749435]
[1720756387890,0.018475,57035.0,57034.0,1.21296135]
[1720756389061,0.018475,57035.0,57034.0,1.96422835]
[1720756389263,0.018475,57035.0,57034.0,2.06422835]
[1720756389682,0.018475,57035.0,57034.0,1.86422835]
[1720756391385,0.018475,57035.0,57034.0,2.06422835]
[1720756391591,0.018475,57035.0,57034.0,2.08722835]
[1720756394822,0.018475,57035.0,57034.0,2.11026954]
[1720756395414,0.018475,57035.0,57034.0,2.35573654]
[1720756396813,0.018475,57035.0,57034.0,2.35501974]
[1720756398059,0.0822,57063.0,57034.0,2.35501974]
[1720756398060,0.1345,57067.0,57052.0,0.12]
[1720756398311,0.01082309,57066.0,57058.0,0.24536]
[1720756398517,0.13348809,57066.0,57059.0,0.122679]
[1720756398728,0.01082309,57065.0,57059.0,0.122679]
[1720756399136,0.01082309,57065.0,57060.0,0.122677]
[1720756399366,0.01082309,57064.0,57060.0,0.122677]
[1720756399561,0.01082309,57063.0,57062.0,0.122672]
[1720756399693,0.01082309,57063.0,57058.0,0.24536]
[1720756399694,0.01082309,57063.0,57060.0,0.122676]
[1720756400062,0.01082309,57062.0,57059.0,0.245357]
[1720756400338,0.1,57066.0,57060.0,0.122677]
[1720756400546,0.02382913,57065.0,57061.0,0.122674]
[1720756400755,0.01082913,57064.0,57062.0,0.0624]
[1720756401248,0.011,57063.0,57062.0,0.185073]
[1720756401452,0.02182904,57063.0,57062.0,0.185073]
[1720756402040,0.01082904,57063.0,57062.0,0.0664]
[1720756402415,0.02283069,57067.0,57062.0,0.0624]
[1720756402677,0.01082883,57066.0,57062.0,0.0624]
[1720756402880,0.01082883,57065.0,57062.0,0.0624]
[1720756403019,0.222662,57068.0,57062.0,0.0674]
[1720756403020,0.01082883,57064.0,57062.0,0.0674]
[1720756403220,0.24542997,57068.0,57062.0,0.0674]
[1720756403437,0.014,57066.0,57062.0,0.0674]
[1720756403640,0.01082871,57065.0,57062.0,0.0674]
[1720756403842,0.0588,57063.0,57062.0,0.005]
[1720756404042,0.43764171,57063.0,57062.0,0.006]
[1720756404247,0.43764171,57063.0,57062.0,0.001]
[1720756404446,0.68298371,57063.0,57062.0,0.001]
[1720756404674,0.68298371,57063.0,57062.0,0.002]
[1720756404868,0.68298079,57063.0,57062.0,0.002]
[1720756405068,0.68298079,57063.0,57062.0,0.005]
[1720756405294,0.68298074,57063.0,57062.0,0.005]
[1720756405874,0.68298074,57063.0,57062.0,0.011]
[1720756406591,0.69270255,57063.0,57062.0,0.011]
[1720756406794,1.05804455,57063.0,57062.0,0.011]
[1720756407152,1.13474455,57063.0,57062.0,0.011]
[1720756407357,1.13474176,57063.0,57062.0,0.011]
[1720756407563,1.01474176,57063.0,57062.0,0.011]
[1720756407900,1.01474176,57063.0,57062.0,0.006]
[1720756408111,0.122682,57058.0,57053.0,0.08511435]
[1720756408309,0.01082304,57057.0,57051.0,0.122696]
[1720756408542,0.02053931,57057.0,57052.0,0.122694]
[1720756408739,0.01082304,57056.0,57052.0,0.122694]
[1720756409138,0.01082304,57056.0,57050.0,0.122698]
[1720756409301,0.01082304,57056.0,57053.0,0.08511435]
[1720756409302,0.00971627,57055.0,57053.0,0.08511435]
[1720756409500,0.00971627,57055.0,57053.0,0.21380635]
[1720756409731,0.122678,57060.0,57053.0,0.21380635]
[1720756409940,0.00971627,57054.0,57053.0,0.21280635]
[1720756410135,0.001,57058.0,57053.0,0.21280635]
[1720756410390,0.01082185,57057.0,57053.0,0.08511435]
[1720756410702,0.001,57055.0,57053.0,0.09511435]
[1720756410909,0.122682,57058.0,57053.0,0.08511435]
[1720756411063,0.00809689,57054.0,57053.0,0.08511435]
[1720756411270,0.001,57054.0,57053.0,0.21880635]
[1720756411487,0.001,57054.0,57053.0,0.20780635]
[1720756411488,0.00809689,57054.0,57053.0,0.20780635]
[1720756411695,0.122678,57060.0,57053.0,0.29060635]
[1720756411908,0.01082112,57059.0,57054.0,0.0028795]
[1720756412062,0.01892133,57059.0,57055.0,0.065]
[1720756412266,0.01082112,57058.0,57055.0,0.065]
[1720756412750,0.01892133,57057.0,57055.0,0.065]
[1720756412959,0.01082112,57056.0,57055.0,0.065]
[1720756413135,0.322044,57063.0,57055.0,0.065]
[1720756413433,0.122678,57060.0,57056.0,0.00292074]
[1720756413638,0.368029,57061.0,57056.0,0.00292074]
[1720756413868,0.001,57058.0,57056.0,0.00292074]
[1720756414078,0.001,57058.0,57057.0,0.122684]
[1720756414293,0.001,57058.0,57057.0,0.61342]
[1720756414698,0.1,57067.0,57060.0,0.122677]
[1720756414699,0.222663,57067.0,57060.0,0.122677]
[1720756414827,0.222663,57067.0,57061.0,0.00292074]
[1720756415674,0.222663,57067.0,57062.0,0.1416]
[1720756415675,0.1,57067.0,57062.0,0.1416]
[1720756416837,0.14542897,57068.0,57062.0,0.1416]
[1720756417057,0.1,57067.0,57062.0,0.1416]
[1720756417483,0.101,57067.0,57062.0,0.1416]
[1720756417699,0.1,57067.0,57062.0,0.1416]
[1720756418209,0.222663,57067.0,57062.0,0.1436]
[1720756419423,0.222663,57067.0,57062.0,0.1416]
[1720756419926,0.222663,57067.0,57062.0,0.1486]
[1720756420131,0.1,57067.0,57062.0,0.1486]
[1720756420349,0.14539607,57070.0,57063.0,0.12267]
[1720756420504,0.14606965,57069.0,57063.0,0.12267]
[1720756420692,0.1,57069.0,57063.0,0.12267]
[1720756421511,0.04596597,57068.0,57063.0,0.12267]
[1720756421847,0.1,57070.0,57063.0,0.12267]
[1720756422371,0.1,57070.0,57063.0,0.245342]
[1720756422372,0.0458393,57069.0,57063.0,0.245342]
[1720756422545,0.0458393,57068.0,57063.0,0.245342]
[1720756422747,0.1,57071.0,57064.0,0.122668]
[1720756422950,0.04579886,57070.0,57064.0,0.122668]
[1720756423152,0.0566169,57069.0,57064.0,0.122668]
[1720756423351,0.0566169,57068.0,57064.0,0.122668]
[1720756423550,0.01081804,57067.0,57064.0,0.122668]
[1720756423754,0.01081804,57066.0,57064.0,0.122668]
[1720756423959,0.01081804,57065.0,57064.0,0.122668]
[1720756424153,0.05662996,57070.0,57064.0,0.122668]
[1720756424356,0.05662793,57069.0,57064.0,0.122668]
[1720756424560,0.05662793,57068.0,57064.0,0.122668]
[1720756424717,0.05662793,57067.0,57064.0,0.124668]
[1720756424923,0.01081804,57066.0,57064.0,0.122668]
[1720756425124,0.01081804,57065.0,57064.0,0.122668]
[1720756425344,0.01081804,57070.0,57064.0,0.122668]
[1720756425605,0.05663187,57069.0,57063.0,0.12267]
[1720756425740,0.04163187,57068.0,57062.0,0.1416]
[1720756425950,0.122667,57065.0,57064.0,0.001]
[1720756426318,0.13348208,57065.0,57064.0,0.001]
[1720756426450,0.13348208,57065.0,57064.0,0.002]
[1720756426645,0.13348208,57065.0,57057.0,0.306367]
[1720756426875,0.01081508,57064.0,57063.0,0.004]